bitfinex-derivatives/quotes_ETHF0:USTF0_20260117
["timestamp","ask_amount","ask_price","bid_price","bid_amount"]
[1768691816646,1.00818714,3308.4,3307.3,0.140521]
[1768691816848,0.00319992,3308.7,3307.3,0.140521]
[1768691817041,1.00818719,3308.6,3307.3,0.140521]
[1768691817245,1.00818719,3308.5,3307.3,0.140521]
[1768691817450,1.00818719,3308.4,3307.3,0.140521]
[1768691817747,0.00319992,3308.7,3307.3,0.140521]
[1768691817947,1.00823663,3308.6,3307.3,0.140521]
[1768691818146,1.00823663,3308.5,3307.3,0.140521]
[1768691818346,1.00823663,3308.4,3307.3,0.140521]
[1768691818644,0.00319992,3308.7,3307.3,0.140521]
[1768691818853,1.00830216,3308.6,3307.3,0.140521]
[1768691819153,1.00830216,3308.5,3307.3,0.140521]
[1768691819354,1.00830216,3308.4,3307.3,0.140521]
[1768691819544,0.00319992,3308.7,3307.3,0.140521]
[1768691819749,1.00838454,3308.6,3307.3,0.140521]
[1768691819954,1.00838454,3308.5,3307.3,0.140521]
[1768691820154,1.00838454,3308.4,3307.3,0.140521]
[1768691820456,0.00319992,3308.7,3307.3,0.140521]
[1768691820655,1.0084911,3308.6,3307.3,0.140521]
[1768691820845,1.0084911,3308.5,3307.3,0.140521]
[1768691821050,1.00849108,3308.4,3307.3,0.140521]
[1768691821251,0.00319992,3308.7,3307.3,0.140521]
[1768691821451,1.00865262,3308.6,3307.3,0.140521]
[1768691821650,1.00865262,3308.5,3307.3,0.140521]
[1768691821851,1.00865262,3308.4,3307.3,0.140521]
[1768691822051,0.00319992,3308.7,3307.3,0.140521]
[1768691822254,1.00768173,3308.6,3307.3,0.140521]
[1768691822562,1.00768173,3308.5,3307.3,0.140521]
[1768691822758,1.00768173,3308.4,3307.3,0.140521]
[1768691822954,0.00319992,3308.7,3307.3,0.140521]
[1768691823154,1.00768142,3308.6,3307.3,0.140521]
[1768691823358,1.00768142,3308.5,3307.3,0.140521]
[1768691823547,1.00768142,3308.4,3307.3,0.140521]
[1768691823753,0.00319992,3308.7,3307.3,0.140521]
[1768691823952,1.00768202,3308.6,3307.3,0.140521]
[1768691824157,1.00768202,3308.5,3307.3,0.140521]
[1768691824348,1.00768202,3308.4,3307.3,0.140521]
[1768691824553,0.00319992,3308.7,3307.3,0.140521]
[1768691824754,1.00768547,3308.6,3307.3,0.140521]
[1768691824954,1.00768547,3308.5,3307.3,0.140521]
[1768691825156,1.00768547,3308.4,3307.3,0.140521]
[1768691825355,0.00319992,3308.7,3307.3,0.140521]
[1768691825560,1.00769109,3308.6,3307.3,0.140521]
[1768691825761,1.00769109,3308.5,3307.3,0.140521]
[1768691825961,1.00769109,3308.4,3307.3,0.140521]
[1768691826165,0.00319992,3308.7,3307.3,0.140521]
[1768691826360,1.00769985,3308.6,3307.3,0.140521]
[1768691826564,1.00769985,3308.5,3307.3,0.140521]
[1768691826765,1.00769985,3308.4,3307.3,0.140521]
[1768691827068,0.00319992,3308.7,3307.3,0.140521]
[1768691827363,1.00771148,3308.6,3307.3,0.140521]
[1768691827669,0.00319992,3308.7,3307.7,0.13011513]
[1768691827963,0.70343785,3309.7,3307.7,0.13011513]
[1768691828157,0.70343785,3309.7,3308.1,0.13011513]
[1768691829071,0.70580961,3309.7,3308.1,0.13011513]
[1768691829462,0.15349176,3309.7,3308.1,0.13011513]
[1768691833365,0.15349176,3309.7,3308.4,0.97501622]
[1768691834769,0.00237176,3309.7,3308.4,0.97501622]
[1768691834968,0.00237176,3309.7,3308.4,1.10513135]
[1768691837875,0.00237176,3309.7,3308.5,0.13011513]
[1768691839676,1.00088255,3309.6,3308.5,0.13011513]
[1768691839872,1.00088255,3309.5,3308.5,0.13011513]
[1768691840071,0.00237176,3309.7,3308.5,0.13011513]
[1768691840269,1.00083691,3309.6,3308.5,0.13011513]
[1768691840471,1.00083691,3309.5,3308.5,0.13011513]
[1768691840775,0.00237176,3309.7,3308.5,0.13011513]
[1768691840976,1.00084734,3309.6,3308.5,0.13011513]
[1768691841270,0.00237176,3309.7,3308.7,0.13011513]
[1768691841469,1.00084422,3309.6,3308.7,0.13011513]
[1768691841668,0.00237176,3309.7,3308.7,0.13011513]
[1768691841869,1.00088192,3309.6,3308.7,0.13011513]
[1768691842063,0.00237176,3309.7,3308.9,0.13292727]
[1768691855884,0.00237176,3309.7,3309.1,0.13615576]
[1768691857085,2.99681301,3310.9,3309.2,0.97501622]
[1768691857397,1.97340349,3310.8,3309.5,0.13615576]
[1768691857693,0.99838727,3310.7,3309.5,0.13615576]
[1768691857896,0.99838727,3310.6,3309.5,0.13615576]
[1768691858193,0.99838727,3310.6,3309.5,0.13828917]
[1768691858194,0.97501622,3310.2,3309.5,0.13828917]
[1768691858592,0.00294079,3310.6,3309.5,0.13828917]
[1768691858781,0.97501622,3310.4,3309.5,0.13828917]
[1768691858987,0.99828037,3310.3,3309.5,0.13828917]
[1768691859190,0.99828037,3310.2,3309.5,0.13828917]
[1768691859391,0.97501622,3310.4,3309.5,0.13828917]
[1768691859600,0.99814979,3310.3,3309.5,0.13828917]
[1768691859899,0.99814979,3310.2,3309.5,0.13828917]
[1768691860099,0.00294079,3310.6,3309.5,0.13828917]
[1768691860391,0.9980245,3310.5,3309.6,0.13615576]
[1768691860697,0.9980245,3310.4,3309.6,0.13615576]
[1768691860894,0.00294079,3310.6,3309.6,0.13615576]
[1768691861094,0.99799603,3310.5,3309.6,0.13615576]
[1768691861400,0.99799603,3310.4,3309.6,0.13615576]
[1768691861604,0.00294079,3310.6,3309.6,0.13615576]
[1768691861804,0.99783683,3310.5,3309.6,0.13615576]
[1768691862004,0.99783683,3310.4,3309.6,0.13615576]
[1768691862198,0.00294079,3310.6,3309.6,0.13615576]
[1768691862399,0.99771088,3310.5,3309.6,0.13615576]
[1768691862599,0.99771088,3310.4,3309.6,0.13615576]
[1768691862801,0.00294079,3310.6,3309.6,0.13615576]
[1768691863106,0.99771089,3310.5,3309.6,0.13615576]
[1768691863306,0.99771089,3310.4,3309.6,0.13615576]
[1768691863506,0.00294079,3310.6,3309.6,0.13615576]
[1768691863707,0.9976127,3310.5,3309.8,0.13615576]
[1768691863908,0.00294079,3310.6,3309.8,0.13615576]
[1768691864096,0.99758345,3310.5,3309.8,0.13615576]
[1768691864299,0.00294079,3310.6,3309.8,0.13615576]
[1768691864799,0.99748018,3310.5,3309.8,0.13615576]
[1768691865100,0.00294079,3310.6,3309.8,0.13615576]
[1768691866998,0.97501622,3310.1,3309.5,0.00213341]
[1768691867906,0.97501622,3310.3,3309.5,0.00213341]
[1768691868207,0.97501622,3310.1,3309.5,0.00213341]
[1768691870706,0.97501622,3309.9,3309.0,0.13615576]
[1768691871710,0.97501622,3309.9,3309.0,0.13964342]
[1768691872098,0.97501622,3309.9,3308.5,0.13676912]
[1768691872304,0.97501622,3309.5,3308.5,0.13676912]
[1768691872713,0.97501622,3310.0,3308.7,0.13676912]
[1768691873008,0.99810672,3309.9,3308.7,0.13676912]
[1768691873209,0.99810672,3309.8,3308.7,0.13989517]
[1768691873410,0.99810672,3309.7,3308.7,0.13989517]
[1768691873603,0.97501622,3310.0,3308.7,0.13989517]
[1768691873804,0.99813853,3309.9,3308.7,0.13989517]
[1768691874000,0.99813853,3309.8,3308.7,0.13989517]
[1768691874203,0.99813853,3309.7,3308.7,0.13989517]
[1768691874399,0.97501622,3310.0,3308.7,0.13989517]
[1768691874607,0.99817295,3309.9,3308.7,0.13989517]
[1768691874912,0.99817295,3309.8,3308.7,0.13989517]
[1768691875210,0.99817295,3309.7,3308.7,0.13989517]
[1768691875410,0.97501622,3310.0,3308.7,0.13989517]
[1768691875608,0.97501622,3309.6,3308.7,0.13989517]
[1768691895333,1.12616529,3310.1,3308.7,0.13989517]
[1768691895516,0.99910166,3310.0,3308.7,0.13989517]
[1768691895722,0.99910166,3309.9,3308.7,0.13989517]
[1768691895922,0.99910166,3309.8,3308.7,0.13989517]
[1768691896122,0.99910166,3309.7,3308.7,0.13989517]
[1768691896325,0.99910166,3309.6,3308.7,0.13989517]
[1768691896526,1.12616529,3310.1,3308.7,0.13989517]
[1768691896726,0.99938566,3310.0,3308.7,0.13989517]
[1768691896926,0.99938566,3309.9,3308.7,0.13989517]
[1768691897222,0.99938566,3309.8,3308.7,0.13989517]
[1768691897429,0.99938566,3309.7,3308.7,0.13989517]
[1768691897629,0.99938566,3309.6,3308.7,0.13989517]
[1768691897832,1.12616529,3310.1,3308.7,0.13989517]
[1768691898030,0.99971077,3310.0,3308.7,0.13989517]
[1768691898232,0.99971077,3309.9,3308.7,0.13989517]
[1768691898421,0.99971077,3309.8,3308.7,0.13989517]
[1768691898624,0.99971077,3309.7,3308.7,0.13989517]
[1768691898827,0.99971077,3309.6,3308.7,0.00312605]
[1768691899133,0.99971077,3309.5,3308.7,0.00312605]
[1768691899334,0.97506529,3309.7,3308.7,0.00312605]
[1768691899529,1.00037507,3309.6,3308.7,0.00312605]
[1768691899725,1.00037507,3309.5,3308.7,0.00312605]
[1768691899926,0.97506529,3309.7,3308.7,0.00312605]
[1768691900126,1.00037311,3309.6,3308.7,0.00312605]
[1768691900329,1.00037311,3309.5,3308.7,0.00312605]
[1768691900627,1.00037311,3309.4,3308.7,0.00312605]
[1768691900827,0.97506529,3309.7,3308.7,0.00312605]
[1768691901025,1.00062497,3309.6,3308.7,0.00312605]
[1768691901238,1.00062497,3309.5,3308.7,0.00312605]
[1768691901434,1.00062497,3309.4,3308.7,0.00312605]
[1768691901642,0.97506529,3309.7,3308.7,0.00312605]
[1768691901936,1.00088459,3309.6,3308.7,0.00312605]
[1768691902136,1.00088459,3309.5,3308.7,0.00312605]
[1768691902332,1.00088459,3309.4,3308.7,0.00312605]
[1768691902533,0.97506529,3309.7,3308.7,0.00312605]
[1768691902733,1.00134802,3309.6,3308.7,0.00312605]
[1768691902933,1.00134802,3309.5,3308.7,0.00312605]
[1768691903133,1.00134802,3309.4,3308.7,0.00312605]
[1768691903333,0.97506529,3309.7,3308.7,0.00312605]
[1768691903633,1.00134014,3309.6,3308.7,0.00312605]
[1768691903834,1.00134014,3309.5,3308.7,0.00312605]
[1768691904035,1.00134014,3309.4,3308.7,0.00312605]
[1768691904230,0.97506529,3309.7,3308.7,0.00312605]
[1768691904428,1.001333,3309.6,3308.7,0.00312605]
[1768691904630,1.001333,3309.5,3308.7,0.00312605]
[1768691904831,1.001333,3309.4,3308.7,0.00312605]
[1768691905030,0.97506529,3309.7,3308.7,0.00312605]
[1768691905231,1.00133471,3309.6,3308.7,0.00312605]
[1768691905438,0.97506529,3309.7,3308.7,0.00312605]
[1768691905439,1.00133471,3309.5,3308.7,0.00312605]
[1768691905640,1.00133471,3309.4,3308.7,0.00312605]
[1768691905841,0.97506529,3309.7,3308.7,0.00312605]
[1768691906045,1.00133511,3309.6,3308.7,0.00312605]
[1768691906235,1.00133511,3309.5,3308.7,0.14459016]
[1768691906540,1.00133511,3309.4,3308.7,0.14459016]
[1768691906742,0.15111,3310.0,3308.7,0.14459016]
[1768691907049,1.00134076,3309.9,3308.7,0.14459016]
[1768691907339,1.00134076,3309.8,3308.7,0.14459016]
[1768691907535,1.00134076,3309.7,3308.7,0.14459016]
[1768691907742,1.00134076,3309.6,3308.7,0.14459016]
[1768691907942,1.00134076,3309.5,3308.7,0.14459016]
[1768691908144,1.00134076,3309.4,3308.7,0.14459016]
[1768691908330,0.15111,3310.0,3308.7,0.14459016]
[1768691908535,1.00135827,3309.9,3308.7,0.14459016]
[1768691908735,1.00135827,3309.8,3308.7,0.14459016]
[1768691908941,1.00135827,3309.7,3308.7,0.14459016]
[1768691909134,1.00135827,3309.6,3308.7,0.14459016]
[1768691909335,1.00135827,3309.5,3308.7,0.14459016]
[1768691909543,1.00135827,3309.4,3308.7,0.14459016]
[1768691909738,0.15111,3310.0,3308.7,0.14459016]
[1768691909944,1.00139958,3309.9,3308.7,0.14459016]
[1768691910150,1.00139958,3309.8,3308.7,0.14459016]
[1768691910345,1.00139958,3309.7,3308.7,0.14459016]
[1768691910545,1.00139958,3309.6,3308.7,0.14459016]
[1768691910745,0.15402079,3310.6,3308.7,0.14459016]
[1768691910948,1.25643241,3310.5,3308.7,0.14459016]
[1768691911145,1.0014114,3310.4,3308.7,0.14459016]
[1768691911451,1.0014114,3310.3,3308.7,0.14459016]
[1768691911642,1.0014114,3310.2,3308.7,0.14459016]
[1768691911837,1.0014114,3310.1,3308.7,0.14459016]
[1768691912041,1.0014114,3310.0,3308.7,0.14459016]
[1768691912241,0.15402079,3310.6,3308.7,0.14459016]
[1768691912446,1.00048785,3310.5,3308.7,0.14459016]
[1768691912649,1.00048785,3310.4,3308.7,0.14459016]
[1768691912847,1.00048785,3310.3,3308.7,0.14459016]
[1768691913042,1.00048785,3310.2,3308.7,0.14459016]
[1768691913244,1.00048785,3310.1,3308.7,0.14459016]
[1768691913444,1.00048785,3310.0,3308.7,0.14459016]
[1768691913741,0.15402079,3310.6,3308.7,0.14459016]
[1768691913944,1.00019157,3310.5,3308.7,0.14459016]
[1768691914150,1.00019157,3310.4,3308.7,0.14459016]
[1768691914358,1.00019157,3310.3,3308.7,0.14459016]
[1768691914656,1.00019157,3310.2,3308.7,0.14459016]
[1768691914855,1.00019157,3310.1,3308.7,0.14459016]
[1768691915045,1.00019157,3310.0,3308.7,0.14459016]
[1768691915246,0.15402079,3310.6,3308.7,0.14459016]
[1768691915446,0.99979508,3310.5,3308.7,0.14459016]
[1768691915645,0.99979508,3310.4,3308.7,0.14459016]
[1768691915845,0.99979508,3310.3,3308.7,0.14459016]
[1768691916046,0.99979508,3310.2,3308.7,0.14459016]
[1768691916348,0.99979508,3310.1,3308.7,0.14459016]
[1768691916547,0.15402079,3310.6,3308.7,0.14459016]
[1768691916739,0.99964805,3310.5,3308.7,0.14459016]
[1768691916944,0.99964805,3310.4,3308.7,0.14459016]
[1768691917147,0.99964805,3310.3,3308.7,0.14459016]
[1768691917345,0.99964805,3310.2,3308.7,0.14459016]
[1768691917553,0.99964805,3310.1,3308.7,0.14459016]
[1768691917757,0.15402079,3310.6,3308.8,0.13948134]
[1768691918053,0.99951892,3310.5,3308.8,0.13948134]
[1768691918252,0.99951892,3310.4,3308.8,0.13948134]
[1768691918446,0.99951892,3310.3,3308.8,0.13948134]
[1768691918647,0.99951892,3310.2,3308.8,0.13948134]
[1768691918849,0.15402079,3310.6,3308.8,0.13948134]
[1768691919052,0.99933117,3310.5,3308.8,0.13948134]
[1768691919254,0.99933117,3310.4,3309.2,0.13948134]
[1768691919454,0.00294079,3310.6,3309.2,0.13948134]
[1768691919655,0.99911502,3310.5,3309.2,0.13948134]
[1768691919953,0.99911502,3310.4,3309.2,0.13948134]
[1768691920147,0.00294079,3310.6,3309.2,0.13948134]
[1768691920347,0.99911482,3310.5,3309.2,0.13948134]
[1768691920548,0.99911482,3310.4,3309.2,0.13948134]
[1768691920756,0.00294079,3310.6,3309.2,0.13948134]
[1768691920953,0.99891291,3310.5,3309.2,0.13948134]
[1768691921156,0.99891291,3310.4,3309.2,0.13948134]
[1768691921456,0.00294079,3310.6,3309.2,0.13948134]
[1768691921650,0.99874033,3310.5,3309.2,0.13948134]
[1768691921848,0.99874033,3310.4,3309.2,0.13948134]
[1768691922049,0.00294079,3310.6,3309.2,0.13948134]
[1768691922249,0.9987288,3310.5,3309.2,0.13948134]
[1768691922449,0.9987288,3310.4,3309.2,0.13948134]
[1768691922649,0.00294079,3310.6,3309.2,0.13948134]
[1768691922850,0.99857761,3310.5,3309.2,0.13948134]
[1768691923052,0.00294079,3310.6,3309.2,0.13948134]
[1768691923353,0.99857683,3310.5,3309.2,0.13948134]
[1768691923553,0.00294079,3310.6,3309.2,0.13948134]
[1768691923756,0.99844832,3310.5,3309.2,0.13948134]
[1768691923948,0.00294079,3310.6,3309.2,0.13948134]
[1768691924147,0.99844903,3310.5,3309.2,0.13948134]
[1768691924344,0.00294079,3310.6,3309.2,0.13948134]
[1768691924549,0.99833733,3310.5,3309.2,0.13948134]
[1768691924752,0.00294079,3310.6,3309.2,0.13948134]
[1768691924953,0.99833495,3310.5,3309.2,0.13948134]
[1768691925165,0.00294079,3310.6,3309.2,0.13948134]
[1768691925355,0.99833495,3310.5,3309.2,0.13948134]
[1768691925553,0.00294079,3310.6,3309.2,0.13948134]
[1768691925745,0.99823848,3310.5,3309.2,0.13948134]
[1768691925949,0.00294079,3310.6,3309.2,0.13948134]
[1768691926157,0.99823848,3310.5,3309.2,0.13948134]
[1768691926358,0.00294079,3310.6,3309.2,0.13948134]
[1768691926660,0.9981647,3310.5,3309.2,0.13948134]
[1768691926851,0.00294079,3310.6,3309.2,0.13948134]
[1768691927049,0.9981647,3310.5,3309.2,0.13948134]
[1768691927253,0.00294079,3310.6,3309.2,0.13948134]
[1768691927550,0.99811242,3310.5,3309.2,0.13948134]
[1768691927750,0.00294079,3310.6,3309.2,0.13948134]
[1768691927962,0.99811242,3310.5,3309.2,0.13948134]
[1768691928160,0.00294079,3310.6,3309.2,0.13948134]
[1768691928362,0.99811242,3310.5,3309.2,0.13948134]
[1768691928552,0.00294079,3310.6,3309.2,0.13948134]
[1768691928753,0.99807919,3310.5,3309.2,0.13948134]
[1768691928952,0.00294079,3310.6,3309.2,0.13948134]
[1768691929161,0.99807919,3310.5,3309.2,0.13948134]
[1768691929349,0.00294079,3310.6,3309.2,0.13948134]
[1768691929554,0.9980845,3310.5,3309.2,0.13948134]
[1768691929861,0.00294079,3310.6,3309.2,0.13948134]
[1768691930061,0.9980845,3310.5,3309.2,0.13948134]
[1768691930261,0.00294079,3310.6,3309.2,0.13948134]
[1768691930561,0.99810543,3310.5,3309.2,0.13948134]
[1768691930756,0.00294079,3310.6,3309.2,0.13948134]
[1768691930957,0.99810486,3310.5,3309.2,0.13948134]
[1768691931148,0.00294079,3310.6,3309.2,0.13948134]
[1768691931349,0.99810486,3310.5,3309.2,0.13948134]
[1768691931549,0.00294079,3310.6,3309.2,0.13948134]
[1768691931755,0.99814877,3310.5,3309.2,0.13948134]
[1768691931962,0.00294079,3310.6,3309.2,0.13948134]
[1768691932162,0.99814914,3310.5,3309.2,0.13948134]
[1768691932353,0.00294079,3310.6,3309.2,0.13948134]
[1768691932554,0.99821771,3310.5,3309.2,0.13948134]
[1768691932754,0.00294079,3310.6,3309.2,0.13948134]
[1768691932955,0.99821771,3310.5,3309.2,0.13948134]
[1768691933150,0.00294079,3310.6,3309.2,0.13948134]
[1768691933359,0.99822288,3310.5,3309.2,0.13948134]
[1768691933558,0.00294079,3310.6,3309.2,0.13948134]
[1768691933760,0.99832657,3310.5,3309.2,0.13948134]
[1768691933961,0.00294079,3310.6,3309.2,0.13948134]
[1768691934155,0.99832634,3310.5,3309.2,0.13948134]
[1768691934359,0.99849663,3310.4,3309.2,0.13948134]
[1768691934560,0.00294079,3310.6,3309.2,0.13948134]
[1768691934764,0.99849614,3310.5,3309.2,0.13948134]
[1768691934966,0.99849614,3310.4,3309.2,0.13948134]
[1768691935162,0.00294079,3310.6,3309.2,0.13948134]
[1768691935360,0.99849614,3310.5,3309.2,0.13948134]
[1768691935660,0.99849614,3310.4,3309.2,0.13948134]
[1768691935866,0.00294079,3310.6,3309.2,0.13948134]
[1768691936064,0.99866538,3310.5,3309.2,0.13948134]
[1768691936265,0.99866538,3310.4,3309.2,0.13948134]
[1768691936465,0.00294079,3310.6,3309.2,0.13948134]
[1768691936666,0.99884805,3310.5,3309.2,0.13948134]
[1768691936866,0.99884805,3310.4,3309.2,0.13948134]
[1768691937057,0.00294079,3310.6,3309.2,0.13948134]
[1768691937259,0.99884805,3310.5,3309.2,0.13948134]
[1768691937459,0.99884805,3310.4,3309.2,0.13948134]
[1768691937661,0.00294079,3310.6,3309.2,0.13948134]
[1768691937861,0.99906955,3310.5,3309.2,0.13948134]
[1768691938062,0.99906955,3310.4,3309.2,0.13948134]
[1768691938257,0.99933652,3310.3,3309.2,0.13948134]
[1768691938460,0.00294079,3310.6,3309.2,0.13948134]
[1768691938656,0.9993367,3310.5,3309.2,0.13948134]
[1768691938862,0.9993367,3310.4,3309.2,0.13948134]
[1768691939062,0.9993367,3310.3,3309.2,0.13948134]
[1768691939363,0.00294079,3310.6,3309.2,0.13948134]
[1768691939570,0.99966903,3310.5,3309.2,0.13948134]
[1768691939771,0.99966903,3310.4,3309.2,0.13948134]
[1768691939967,0.99966903,3310.3,3309.2,0.13948134]
[1768691940185,0.00294079,3310.6,3309.2,0.13948134]
[1768691940372,0.99966908,3310.5,3309.2,0.13948134]
[1768691940565,0.99966908,3310.4,3309.2,0.13948134]
[1768691940768,0.99966908,3310.3,3309.2,0.13948134]
[1768691940965,0.00294079,3310.6,3309.2,0.13948134]
[1768691941165,1.00001887,3310.5,3309.2,0.13948134]
[1768691941360,1.00001887,3310.4,3309.2,0.13948134]
[1768691941563,1.00001887,3310.3,3309.2,0.13948134]
[1768691941762,1.00001887,3310.2,3309.2,0.13948134]
[1768691941972,0.00294079,3310.6,3309.2,0.13948134]
[1768691942172,1.00056889,3310.5,3309.2,0.13948134]
[1768691942472,1.00056889,3310.4,3309.2,0.13948134]
[1768691942671,1.00056889,3310.3,3309.2,0.13948134]
[1768691942873,1.00056889,3310.2,3309.2,0.13948134]
[1768691943066,0.00294079,3310.6,3309.2,0.13948134]
[1768691943267,1.00063515,3310.5,3309.2,0.13948134]
[1768691943469,1.00063515,3310.4,3309.2,0.13948134]
[1768691943669,1.00063515,3310.3,3309.2,0.13948134]
[1768691943869,1.00063515,3310.2,3309.2,0.13948134]
[1768691944074,0.00294079,3310.6,3309.2,0.13948134]
[1768691944274,1.00070838,3310.5,3309.2,0.13948134]
[1768691944475,1.00070838,3310.4,3309.2,0.13948134]
[1768691944668,1.00070838,3310.3,3309.2,0.13948134]
[1768691944868,1.00070838,3310.2,3309.2,0.13948134]
[1768691945076,0.00294079,3310.6,3309.2,0.13948134]
[1768691945272,1.00080856,3310.5,3309.2,0.13948134]
[1768691945475,1.00080856,3310.4,3309.2,0.13948134]
[1768691945665,1.00080856,3310.3,3309.2,0.13948134]
[1768691945868,1.00080856,3310.2,3309.2,0.13948134]
[1768691946069,0.00294079,3310.6,3309.2,0.13948134]
[1768691946278,1.00090796,3310.5,3309.2,0.13948134]
[1768691946577,1.00090796,3310.4,3309.2,0.13948134]
[1768691946775,1.00090796,3310.3,3309.2,0.13948134]
[1768691946978,1.00090796,3310.2,3309.2,0.13948134]
[1768691947170,1.00103949,3310.1,3309.2,0.13948134]
[1768691947478,1.00119143,3310.0,3308.8,0.13876198]
[1768691947684,0.97506529,3310.5,3308.8,0.13876198]
[1768691947976,0.00294079,3310.6,3308.8,0.13876198]
[1768691947977,1.00119246,3310.4,3308.8,0.13876198]
[1768691948278,1.00119246,3310.3,3308.8,0.13876198]
[1768691948470,1.00119246,3310.2,3308.8,0.13876198]
[1768691948666,1.00119246,3310.1,3308.8,0.13876198]
[1768691948877,1.00119246,3310.0,3308.8,0.13876198]
[1768691949078,0.00294079,3310.6,3308.8,0.13876198]
[1768691949376,1.00113814,3310.5,3308.8,0.13876198]
[1768691949579,1.00113814,3310.4,3308.8,0.13876198]
[1768691949878,1.00113814,3310.3,3308.8,0.13876198]
[1768691950177,1.00113814,3310.2,3308.8,0.13876198]
[1768691950379,1.00113814,3310.1,3308.8,0.13876198]
[1768691950580,0.00294079,3310.6,3308.8,0.13876198]
[1768691950781,1.00108478,3310.5,3308.8,0.13876198]
[1768691950974,1.00108478,3310.4,3308.8,0.13876198]
[1768691951174,1.00108478,3310.3,3308.8,0.13876198]
[1768691951374,1.00108478,3310.2,3308.8,0.13876198]
[1768691951676,1.00108478,3310.1,3308.8,0.13876198]
[1768691951879,0.00294079,3310.6,3308.8,0.13876198]
[1768691952183,1.00103397,3310.5,3308.8,0.13876198]
[1768691952375,1.00103397,3310.4,3308.8,0.13876198]
[1768691952576,1.00103397,3310.3,3308.8,0.13876198]
[1768691952873,1.00103397,3310.2,3308.8,0.13876198]
[1768691953075,1.00103397,3310.1,3308.8,0.13876198]
[1768691953275,0.00294079,3310.6,3308.8,0.13876198]
[1768691953475,1.00095957,3310.5,3308.8,0.13876198]
[1768691953676,1.00095957,3310.4,3308.8,0.13876198]
[1768691953876,1.00095957,3310.3,3308.8,0.13876198]
[1768691954070,1.00095957,3310.2,3308.8,0.13876198]
[1768691954274,1.00095957,3310.1,3308.8,0.13876198]
[1768691954473,0.00294079,3310.6,3308.8,0.13876198]
[1768691954675,1.00093337,3310.5,3308.8,0.13876198]
[1768691954875,1.00093337,3310.4,3308.8,0.13876198]
[1768691955074,1.00093337,3310.3,3308.8,0.13876198]
[1768691955283,1.00093337,3310.2,3308.8,0.13876198]
[1768691955585,1.00093337,3310.1,3308.8,0.13876198]
[1768691955881,0.00294079,3310.6,3308.8,0.13876198]
[1768691956183,1.00092042,3310.5,3308.8,0.13876198]
[1768691956376,1.00092042,3310.4,3308.8,0.13876198]
[1768691956581,1.00092042,3310.3,3308.8,0.13876198]
[1768691956782,1.00092042,3310.2,3308.8,0.13876198]
[1768691956982,1.00092042,3310.1,3308.8,0.13876198]
[1768691957184,0.00294079,3310.6,3308.8,0.13876198]
[1768691957381,0.97478245,3310.1,3308.9,0.13876198]
[1768691958880,0.15402079,3310.6,3308.9,0.13876198]
[1768691959081,0.97478245,3310.0,3308.9,0.13876198]
[1768691960280,0.97478245,3310.1,3308.9,0.13876198]
[1768691963081,1.00104655,3310.0,3308.9,0.13876198]
[1768691963286,0.97478245,3310.1,3308.9,0.13876198]
[1768691963478,1.00102908,3310.0,3308.9,0.13876198]
[1768691963679,0.97478245,3310.1,3308.9,0.13876198]
[1768691963987,0.15402079,3310.6,3308.9,0.13876198]
[1768691963988,0.97478245,3309.9,3308.9,0.13876198]
[1768691968993,0.97478245,3309.7,3308.7,0.00312605]
[1768691969794,0.97478245,3309.9,3308.7,0.00312605]
[1768691971597,0.15108,3310.5,3308.8,0.13474635]
[1768691971792,0.97478245,3310.3,3309.0,0.13474635]
[1768691971996,1.00089431,3310.2,3309.3,0.97478245]
[1768691972192,1.00089431,3310.1,3309.3,0.97478245]
[1768691972388,1.00089431,3310.0,3309.3,0.97478245]
[1768691972589,0.15108,3310.5,3309.3,0.97478245]
[1768691972789,1.00087772,3310.4,3309.3,0.97478245]
[1768691973091,1.00087772,3310.3,3309.3,0.97478245]
[1768691973288,1.00087772,3310.2,3309.3,0.97478245]
[1768691973598,1.00087772,3310.1,3309.3,0.97478245]
[1768691973793,1.00087772,3310.0,3309.3,0.97478245]
[1768691974092,0.15108,3310.5,3309.3,0.97478245]
[1768691974287,1.00092814,3310.4,3309.3,0.97478245]
[1768691974493,1.00092814,3310.3,3309.3,1.10649899]
[1768691974695,1.00092814,3310.2,3309.3,1.10649899]
[1768691974894,1.00092814,3310.1,3309.3,1.10649899]
[1768691975096,1.00092814,3310.0,3309.3,1.10649899]
[1768691975297,0.15108,3310.5,3309.4,0.13171654]
[1768691975497,1.00100359,3310.4,3309.4,0.13171654]
[1768691975697,1.00100359,3310.3,3309.4,0.13171654]
[1768691975896,1.00100359,3310.2,3309.4,0.13171654]
[1768691976099,1.00100359,3310.1,3309.4,0.13171654]
[1768691976302,1.00100359,3310.0,3309.4,0.13171654]
[1768691976490,0.15108,3310.5,3309.4,0.13171654]
[1768691976692,1.00106551,3310.4,3309.4,0.13171654]
[1768691976890,1.00106551,3310.3,3309.4,0.13171654]
[1768691977199,1.00106551,3310.2,3309.4,0.13171654]
[1768691977397,1.00106551,3310.1,3309.4,0.13171654]
[1768691977598,1.00106551,3310.0,3309.4,0.13171654]
[1768691977799,0.15108,3310.5,3309.4,0.13171654]
[1768691977999,1.001115,3310.4,3309.4,0.13171654]
[1768691978196,1.001115,3310.3,3309.4,0.13171654]
[1768691978395,1.001115,3310.2,3309.4,0.13171654]
[1768691978598,1.001115,3310.1,3309.4,0.13171654]
[1768691978800,1.001115,3310.0,3309.4,0.13171654]
[1768691978999,1.12586245,3310.5,3309.4,0.13171654]
[1768691979303,1.00112709,3310.4,3309.4,0.13171654]
[1768691979495,1.00112709,3310.3,3309.4,0.13171654]
[1768691979694,1.00112709,3310.2,3309.4,0.13171654]
[1768691979895,1.00112709,3310.1,3309.4,0.13171654]
[1768691980105,1.00112709,3310.0,3309.4,0.13171654]
[1768691980304,1.12586245,3310.5,3309.4,0.13171654]
[1768691980498,1.00115752,3310.4,3309.4,0.13171654]
[1768691980696,1.00115752,3310.3,3309.4,0.13171654]
[1768691980897,1.00115752,3310.2,3309.4,0.13171654]
[1768691981096,1.00115752,3310.1,3309.4,0.13171654]
[1768691981295,1.00115752,3310.0,3309.4,0.13171654]
[1768691981493,1.12586245,3310.5,3309.4,0.13171654]
[1768691981704,1.00117202,3310.4,3309.4,0.13171654]
[1768691981899,1.00117202,3310.3,3309.4,0.13171654]
[1768691982203,1.00117202,3310.2,3309.4,0.13171654]
[1768691982398,1.00117202,3310.1,3309.4,0.13171654]
[1768691982597,1.00117202,3310.0,3309.4,0.13171654]
[1768691982897,0.97478245,3310.3,3309.4,0.13171654]
[1768691983095,1.00118799,3310.2,3309.4,0.13171654]
[1768691983295,1.00118799,3310.1,3309.4,0.13171654]
[1768691983494,1.00118799,3310.0,3309.4,0.13171654]
[1768691983695,0.97478245,3310.3,3309.4,0.13171654]
[1768691983895,1.00120469,3310.2,3309.4,0.13171654]
[1768691984104,1.00120469,3310.1,3309.4,0.13171654]
[1768691984402,1.00120469,3310.0,3309.4,0.13171654]
[1768691984603,0.97478245,3310.3,3309.4,0.13171654]
[1768691984804,1.00122289,3310.2,3309.4,0.13171654]
[1768691984998,1.00122289,3310.1,3309.4,0.13171654]
[1768691985205,1.00122289,3310.0,3309.4,0.13171654]